bitfinex/quotes_BTCUSD_20250331
["timestamp","ask_amount","ask_price","bid_price","bid_amount"]
[1743413054419,0.01921195,81784.0,81783.0,0.55565001]
[1743413054618,0.01921195,81784.0,81783.0,0.54342301]
[1743413055127,0.01921195,81784.0,81783.0,0.29887401]
[1743413056237,0.26375795,81784.0,81783.0,0.29887401]
[1743413056862,0.01921195,81784.0,81783.0,0.29887401]
[1743413057089,0.01921195,81784.0,81783.0,0.54342301]
[1743413057297,6.335e-05,81784.0,81783.0,0.54342301]
[1743413058020,0.24460935,81784.0,81783.0,0.29887401]
[1743413059942,0.24460935,81784.0,81783.0,0.15263401]
[1743413060121,0.24460935,81784.0,81783.0,0.12628483]
[1743413060325,0.24460935,81784.0,81783.0,0.27248483]
[1743413060533,0.24460935,81784.0,81783.0,0.13796236]
[1743413060750,0.25683635,81784.0,81783.0,0.12628483]
[1743413060956,0.25683635,81784.0,81783.0,0.13496236]
[1743413061275,0.25683635,81784.0,81783.0,0.13196236]
[1743413061419,0.25683635,81784.0,81783.0,0.13296236]
[1743413061615,0.25683635,81784.0,81783.0,0.01367753]
[1743413061818,0.25683635,81784.0,81783.0,0.01267753]
[1743413062021,0.57598568,81784.0,81783.0,0.001]
[1743413062392,0.57598568,81784.0,81783.0,0.002]
[1743413063021,0.65688568,81784.0,81783.0,0.002]
[1743413063378,0.65688568,81784.0,81783.0,0.001]
[1743413063599,0.256823,81768.0,81767.0,0.1462]
[1743413063799,0.256823,81768.0,81767.0,0.12028483]
[1743413064378,0.27597533,81768.0,81767.0,0.13204232]
[1743413065040,0.27597533,81768.0,81767.0,0.13504232]
[1743413065663,0.27597533,81768.0,81767.0,0.13204232]
[1743413067113,0.27597533,81768.0,81767.0,0.13304232]
[1743413067315,0.27597533,81768.0,81767.0,0.13604232]
[1743413067502,0.256823,81768.0,81767.0,0.13304232]
[1743413067890,0.256823,81768.0,81767.0,0.12228483]
[1743413068091,0.244594,81768.0,81767.0,0.13408074]
[1743413068531,0.244592,81769.0,81767.0,0.13408074]
[1743413068532,0.3,81769.0,81767.0,0.13408074]
[1743413068862,0.544592,81769.0,81768.0,0.12028483]
[1743413069417,0.544592,81769.0,81768.0,0.13208074]
[1743413069615,0.556821,81769.0,81768.0,0.12028483]
[1743413069818,0.556821,81769.0,81768.0,0.13208074]
[1743413070035,0.556821,81769.0,81768.0,0.12028483]
[1743413070669,0.556821,81769.0,81768.0,0.12128483]
[1743413070952,0.556821,81769.0,81768.0,0.13308074]
[1743413071308,0.556821,81769.0,81768.0,0.13408074]
[1743413071721,0.57597322,81769.0,81768.0,0.13408074]
[1743413076633,0.56374422,81769.0,81768.0,0.13408074]
[1743413076838,0.012227,81782.0,81774.0,0.012228]
[1743413076955,6.335e-05,81784.0,81780.0,0.012227]
[1743413077172,0.30006335,81784.0,81783.0,0.256776]
[1743413077406,0.31229035,81784.0,81783.0,0.12028483]
[1743413077629,0.55683635,81784.0,81783.0,0.13208185]
[1743413077915,0.55683635,81784.0,81783.0,0.12028483]
[1743413080193,0.57598662,81784.0,81783.0,0.12028483]
[1743413081085,0.31921362,81784.0,81783.0,0.12028483]
[1743413081337,0.01921362,81784.0,81783.0,0.38885785]
[1743413081601,0.01921362,81784.0,81783.0,0.4033987]
[1743413083184,0.01921362,81784.0,81783.0,0.4043987]
[1743413083641,0.01921362,81784.0,81783.0,0.4033987]
[1743413084152,0.01921362,81784.0,81783.0,0.4073987]
[1743413084615,0.01921362,81784.0,81783.0,0.4083987]
[1743413085070,0.01921362,81784.0,81783.0,0.4073987]
[1743413085525,0.01921362,81784.0,81783.0,0.4113987]
[1743413086898,6.335e-05,81784.0,81783.0,0.4919987]
[1743413087791,6.335e-05,81784.0,81783.0,0.4879987]
[1743413088004,6.335e-05,81784.0,81783.0,0.4839987]
[1743413088231,6.335e-05,81784.0,81783.0,0.4899987]
[1743413089173,6.335e-05,81784.0,81783.0,0.4959987]
[1743413092336,6.335e-05,81784.0,81783.0,1.71937497]
[1743413098978,3.5e-07,81784.0,81783.0,1.71937497]
[1743413100367,3.5e-07,81784.0,81783.0,1.71337497]
[1743413101598,3.5e-07,81784.0,81783.0,1.70737497]
[1743413101757,3.5e-07,81784.0,81783.0,1.71337497]
[1743413101953,3.5e-07,81784.0,81783.0,1.71937497]
[1743413103993,3.5e-07,81784.0,81783.0,2.12797431]
[1743413104591,3.5e-07,81784.0,81783.0,2.18167431]
[1743413104794,3.5e-07,81784.0,81783.0,2.48167431]
[1743413104996,3.5e-07,81784.0,81783.0,2.50081831]
[1743413105573,3.5e-07,81784.0,81783.0,2.49481831]
[1743413105893,3.5e-07,81784.0,81783.0,2.48881831]
[1743413106096,3.5e-07,81784.0,81783.0,2.50081831]
[1743413106877,3.5e-07,81784.0,81783.0,2.19581831]
[1743413107094,3.5e-07,81784.0,81783.0,2.32267431]
[1743413107296,3.5e-07,81784.0,81783.0,2.11343346]
[1743413107503,3.5e-07,81784.0,81783.0,0.89005719]
[1743413107706,3.5e-07,81784.0,81783.0,0.80945719]
[1743413108130,0.25677335,81784.0,81783.0,0.13208185]
[1743413108342,0.25677335,81784.0,81783.0,0.28408185]
[1743413108544,3.5e-07,81784.0,81783.0,0.29892331]
[1743413108745,3.5e-07,81784.0,81783.0,0.55569931]
[1743413108945,3.5e-07,81784.0,81783.0,0.54969931]
[1743413109265,3.5e-07,81784.0,81783.0,0.54369931]
[1743413109496,3.5e-07,81784.0,81783.0,0.54769931]
[1743413109683,3.5e-07,81784.0,81783.0,0.56224016]
[1743413109903,3.5e-07,81784.0,81783.0,0.55924016]
[1743413110105,3.5e-07,81784.0,81783.0,0.5466656]
[1743413110434,0.0191475,81784.0,81783.0,0.5466656]
[1743413110847,0.0191475,81784.0,81783.0,0.5456656]
[1743413111045,0.0152475,81784.0,81783.0,0.5456656]
[1743413111603,0.0152475,81784.0,81783.0,0.5466656]
[1743413112071,0.0152475,81784.0,81783.0,0.5496656]
[1743413112103,0.3,81796.0,81783.0,0.5496656]
[1743413112104,0.3791,81801.0,81798.0,0.244504]
[1743413112355,0.3791,81801.0,81797.0,0.012225]
[1743413112356,0.01251198,81799.0,81797.0,0.256732]
[1743413112586,0.244499,81800.0,81799.0,0.15406539]
[1743413112756,0.244499,81800.0,81799.0,0.27435022]
[1743413113005,0.256723,81800.0,81799.0,0.00806539]
[1743413113234,0.256726,81799.0,81798.0,0.146]
[1743413113637,0.012225,81798.0,81791.0,0.244525]
[1743413113835,0.244522,81793.0,81792.0,0.26628483]
[1743413114199,0.256747,81793.0,81792.0,0.26628483]
[1743413114397,0.244522,81793.0,81792.0,0.26628483]
[1743413114745,0.012225,81793.0,81773.0,0.012228]
[1743413114980,0.012227,81783.0,81780.0,0.01454085]
[1743413115188,0.0499,81784.0,81782.0,0.01454085]
[1743413115404,0.294446,81784.0,81783.0,0.13482568]
[1743413115611,0.0499,81784.0,81783.0,0.13482568]
[1743413115892,0.01914751,81784.0,81783.0,0.39160168]
[1743413117505,0.244527,81791.0,81788.0,0.244533]
[1743413117800,0.244527,81791.0,81789.0,0.12028483]
[1743413119201,0.244527,81791.0,81790.0,0.00806539]
[1743413119356,0.244527,81791.0,81790.0,0.12835022]
[1743413120372,0.26367408,81791.0,81790.0,0.12835022]
[1743413120795,0.27590008,81791.0,81790.0,0.12835022]
[1743413121128,0.27590008,81791.0,81790.0,0.12935022]
[1743413121334,0.27590008,81791.0,81790.0,0.13035022]
[1743413121622,0.27590008,81791.0,81790.0,0.12228483]
[1743413122598,0.27590008,81791.0,81790.0,0.13035022]
[1743413122978,0.27590008,81791.0,81790.0,0.12228483]
[1743413123926,0.27590008,81791.0,81790.0,0.13038857]
[1743413124101,0.27590008,81791.0,81790.0,0.12228483]
[1743413124301,0.27590008,81791.0,81790.0,0.13038857]
[1743413125531,0.27590008,81791.0,81790.0,0.01010374]
[1743413125889,0.57590008,81791.0,81790.0,0.002]
[1743413126084,0.65650008,81791.0,81790.0,0.002]
[1743413126295,0.70630008,81791.0,81790.0,0.002]
[1743413127144,0.70630008,81791.0,81790.0,0.001]
[1743413127462,0.256798,81776.0,81775.0,0.146]
[1743413127667,0.256798,81776.0,81775.0,6.335e-05]
[1743413128745,0.256798,81776.0,81775.0,0.00106335]
[1743413129931,0.304298,81776.0,81775.0,0.00206335]
[1743413134834,0.604298,81776.0,81775.0,0.00206335]
[1743413136603,0.604298,81776.0,81775.0,0.00106335]
[1743413137210,0.604298,81776.0,81775.0,0.00206335]
[1743413139693,0.604298,81776.0,81775.0,0.00106335]
[1743413139900,0.604298,81776.0,81775.0,6.335e-05]
[1743413141315,0.62345086,81776.0,81775.0,6.335e-05]
[1743413141515,0.62195086,81776.0,81775.0,6.335e-05]
[1743413142276,0.62175086,81776.0,81775.0,6.335e-05]
[1743413143646,0.62175086,81776.0,81775.0,3.5e-07]
[1743413144024,0.256905,81742.0,81739.0,0.0769]
[1743413144177,0.244669,81743.0,81741.0,0.01454085]
[1743413144411,0.256902,81743.0,81742.0,0.12028483]
[1743413144776,0.27605835,81743.0,81742.0,0.13482568]
[1743413145017,0.27605835,81743.0,81742.0,0.12028483]
[1743413145834,0.27605835,81743.0,81742.0,0.13482568]
[1743413146677,0.27543094,81743.0,81742.0,0.12028483]
[1743413146882,0.27543094,81743.0,81740.0,0.14596]
[1743413146883,0.244678,81740.0,81739.0,0.15105763]
[1743413147138,0.25703654,81740.0,81739.0,0.27134246]
[1743413147347,0.25703654,81740.0,81739.0,0.12034246]
[1743413149286,0.25703654,81740.0,81739.0,0.12734573]
[1743413149489,0.26926954,81740.0,81739.0,0.12734573]
[1743413149666,0.25703654,81740.0,81739.0,0.12734573]
[1743413149896,0.25703654,81740.0,81739.0,0.12934573]
[1743413150132,0.25703654,81740.0,81739.0,0.13134573]
[1743413151232,0.26926954,81740.0,81739.0,0.13134573]
[1743413152183,0.01235854,81740.0,81739.0,0.13134573]
[1743413152390,0.244678,81740.0,81739.0,0.13134573]
[1743413152617,0.244675,81741.0,81739.0,0.13134573]
[1743413152816,0.244659,81747.0,81743.0,0.244669]
[1743413153019,0.012232,81748.0,81743.0,0.012233]
[1743413153020,0.556886,81748.0,81743.0,0.012233]
[1743413153170,0.3,81748.0,81744.0,0.012233]
[1743413153377,0.15995213,81770.0,81755.0,0.256864]
[1743413153577,0.01240187,81762.0,81761.0,0.256845]
[1743413153877,0.0191558,81770.0,81769.0,0.25682]
[1743413154098,0.256823,81769.0,81765.0,0.01454085]
[1743413154307,0.2446,81766.0,81765.0,0.01454085]
[1743413154506,0.244597,81768.0,81765.0,0.13482568]
[1743413154844,0.244598,81767.0,81766.0,0.12028483]
[1743413155068,0.256827,81767.0,81766.0,0.12028483]
[1743413155282,0.01223,81764.0,81761.0,0.002]
[1743413155506,0.244603,81766.0,81763.0,0.244606]
[1743413155705,0.244606,81764.0,81763.0,0.12028483]
[1743413156866,0.244606,81764.0,81763.0,0.12428483]
[1743413157457,0.244606,81764.0,81763.0,0.12828483]
[1743413158418,0.256835,81765.0,81763.0,0.12828483]
[1743413158646,0.244606,81764.0,81763.0,0.12828483]
[1743413159588,0.244606,81764.0,81763.0,0.12428483]
[1743413160013,0.244606,81764.0,81763.0,0.12828483]
[1743413160527,0.244606,81764.0,81763.0,0.12428483]
[1743413161278,0.244606,81764.0,81763.0,0.14282568]
[1743413161521,0.256836,81764.0,81763.0,0.14282568]
[1743413163097,0.556836,81764.0,81763.0,0.14282568]
[1743413163761,0.556836,81764.0,81763.0,0.14871955]
[1743413164397,0.556836,81764.0,81763.0,0.14071955]
[1743413164641,0.556836,81764.0,81763.0,0.14271955]
[1743413164887,0.556836,81764.0,81763.0,0.01093773]
[1743413165361,1.04953571,81764.0,81763.0,0.004]
[1743413165869,0.012234,81733.0,81730.0,0.1574]
[1743413166105,0.15995213,81740.0,81739.0,0.14592]
[1743413166327,0.244678,81740.0,81739.0,0.28074568]
[1743413166541,0.244678,81740.0,81739.0,0.26620483]
[1743413166802,0.27606916,81740.0,81739.0,0.26620483]
[1743413167039,0.25694,81731.0,81730.0,0.0818]
[1743413167287,0.25694,81731.0,81730.0,0.34800483]
[1743413167534,0.25694,81731.0,81730.0,0.36301634]
[1743413168355,0.24074,81731.0,81730.0,0.20255549]
[1743413168510,0.24074,81731.0,81730.0,0.34847549]
[1743413168858,0.24074,81731.0,81730.0,0.22819066]
[1743413168859,0.252975,81731.0,81730.0,0.22819066]
[1743413169261,0.252975,81731.0,81730.0,0.23319066]
[1743413169490,0.252975,81731.0,81730.0,0.23819066]
[1743413169623,0.252975,81731.0,81730.0,0.09227066]
[1743413169838,0.552975,81731.0,81730.0,0.08727066]
[1743413170036,0.57213482,81731.0,81730.0,0.08627066]
[1743413170262,0.58434137,81731.0,81730.0,0.08627066]
[1743413170474,0.58434137,81731.0,81730.0,0.09027066]
[1743413170708,0.58434137,81731.0,81730.0,0.08227066]
[1743413171103,0.58434137,81731.0,81730.0,0.08527066]
[1743413171333,0.58434137,81731.0,81730.0,0.08827066]
[1743413172255,0.58434137,81731.0,81730.0,0.08227066]
[1743413172501,0.58434137,81731.0,81730.0,0.08327066]
[1743413172997,0.58534137,81731.0,81730.0,0.08327066]
[1743413173219,0.58534137,81731.0,81730.0,0.08227066]
[1743413173457,0.58634137,81731.0,81730.0,0.08227066]
[1743413176294,0.57410637,81731.0,81730.0,0.08227066]
[1743413176537,0.57410637,81731.0,81730.0,0.34523355]
[1743413176538,0.33336637,81731.0,81730.0,0.34523355]
[1743413177009,0.33336637,81731.0,81730.0,0.08829055]
[1743413177461,0.31420655,81731.0,81730.0,0.08829055]
[1743413177716,0.57114655,81731.0,81730.0,0.1028314]
[1743413177941,0.57014655,81731.0,81730.0,0.1028314]
[1743413179134,0.56914655,81731.0,81730.0,0.1028314]
[1743413179355,0.56914655,81731.0,81730.0,0.1038314]
[1743413179637,0.56914655,81731.0,81730.0,0.1048314]
[1743413180461,0.58830797,81731.0,81730.0,0.1048314]
[1743413182033,0.58830797,81731.0,81730.0,0.09881151]
[1743413183758,0.58830797,81731.0,81730.0,0.10485538]
[1743413184517,0.58830797,81731.0,81730.0,0.09881151]
[1743413185594,0.58830797,81731.0,81730.0,0.08427066]
[1743413186701,0.56914655,81731.0,81730.0,0.08427066]
[1743413188147,0.56914655,81731.0,81730.0,0.08327066]
[1743413188355,0.57014655,81731.0,81730.0,0.08327066]
[1743413188881,0.57014655,81731.0,81730.0,0.08227066]
[1743413189072,0.56914655,81731.0,81730.0,0.08227066]
[1743413189394,0.57014655,81731.0,81730.0,0.08227066]
[1743413189736,0.57114655,81731.0,81730.0,0.08227066]
[1743413189938,0.5903091,81731.0,81730.0,0.08227066]
[1743413193196,1.00370881,81731.0,81730.0,0.08227066]
[1743413194882,1.00370881,81731.0,81730.0,0.04068137]
[1743413195081,1.24164589,81731.0,81730.0,0.04068137]
[1743413195347,1.24164589,81731.0,81730.0,0.01288091]
[1743413196139,1.23964589,81731.0,81730.0,0.01288091]
[1743413196314,0.556952,81727.0,81726.0,0.002]
[1743413196518,0.67723683,81727.0,81726.0,0.002]
[1743413197687,0.68023683,81727.0,81726.0,0.002]
[1743413197886,1.09363654,81727.0,81726.0,0.002]
[1743413198537,1.09663654,81727.0,81726.0,0.002]
[1743413199591,1.21692137,81727.0,81726.0,0.002]
[1743413200600,1.236087,81727.0,81726.0,0.002]
[1743413200786,1.236087,81727.0,81726.0,1e-06]
[1743413201012,1.27833925,81727.0,81726.0,1e-06]
[1743413201161,1.15805442,81727.0,81726.0,1e-06]
[1743413201367,1.20069373,81727.0,81726.0,1e-06]
[1743413201568,1.25039373,81727.0,81726.0,1e-06]
[1743413202135,1.33099373,81727.0,81726.0,1e-06]
[1743413202396,1.32799373,81727.0,81726.0,1e-06]
[1743413202769,1.32899373,81727.0,81726.0,1e-06]
[1743413203166,1.32499373,81727.0,81726.0,1e-06]
[1743413203490,1.33299373,81727.0,81726.0,1e-06]
[1743413203835,1.32899373,81727.0,81726.0,1e-06]
[1743413204046,0.012238,81712.0,81711.0,0.004]
[1743413204271,0.97039971,81712.0,81711.0,0.004]
[1743413204890,0.98956744,81712.0,81711.0,0.004]
[1743413206438,0.99853971,81712.0,81711.0,0.004]
[1743413207401,0.97937198,81712.0,81711.0,0.004]
[1743413207823,0.96713398,81712.0,81711.0,0.004]
[1743413208018,0.97937198,81712.0,81711.0,0.004]
[1743413210457,1.11882517,81712.0,81711.0,0.004]
[1743413211283,0.557047,81697.0,81692.0,0.083]
[1743413212089,0.57621608,81697.0,81687.0,0.0752]
[1743413212490,0.557077,81687.0,81681.0,0.004]
[1743413212686,0.97047671,81687.0,81686.0,1e-06]
[1743413212934,0.557093,81682.0,81681.0,0.00274101]
[1743413213489,0.56938666,81682.0,81681.0,0.00274101]
[1743413213691,0.68967149,81682.0,81681.0,0.00274101]
[1743413214064,0.6196749,81682.0,81681.0,0.00274101]
[1743413214338,0.55714,81667.0,81658.0,0.012246]
[1743413214566,0.55714,81667.0,81662.0,0.24491]
[1743413214769,0.544896,81667.0,81662.0,0.24491]
[1743413214971,0.55714,81667.0,81666.0,0.00692467]
[1743413215126,0.57631669,81667.0,81666.0,0.002]
[1743413215748,0.57678676,81667.0,81666.0,0.002]
[1743413215955,0.57678676,81667.0,81666.0,0.004]
[1743413217317,0.57678676,81667.0,81666.0,0.005]
[1743413217445,0.55761007,81667.0,81666.0,0.004]
[1743413217803,0.55761007,81667.0,81666.0,0.003]
[1743413218137,0.55761007,81667.0,81666.0,0.005]
[1743413218387,0.97100978,81667.0,81666.0,0.005]
[1743413219274,0.71386978,81667.0,81666.0,0.005]
[1743413219618,0.71386978,81667.0,81666.0,0.249899]
[1743413220019,0.71386978,81667.0,81666.0,0.25486037]
[1743413220251,0.71386978,81667.0,81666.0,0.00996137]
[1743413220424,0.99018624,81667.0,81666.0,0.00996137]
[1743413220626,0.99018624,81667.0,81666.0,0.005]
[1743413220825,0.99018624,81667.0,81666.0,0.00996137]
[1743413221064,0.99018624,81667.0,81666.0,0.005]
[1743413227453,0.97100978,81667.0,81666.0,0.003]
[1743413227602,0.97100978,81667.0,81666.0,0.004]
[1743413228489,0.97100978,81667.0,81666.0,0.003]
[1743413229265,0.97100978,81667.0,81666.0,0.002]
[1743413229712,0.97100978,81667.0,81666.0,0.003]
[1743413230013,0.97100978,81667.0,81666.0,0.002]
[1743413230351,0.99018781,81667.0,81666.0,0.002]
[1743413233035,0.257188,81652.0,81651.0,0.11334231]
[1743413233786,0.27636727,81652.0,81651.0,0.11334231]
[1743413234197,0.27636727,81652.0,81651.0,0.12240777]
[1743413235058,0.01917927,81652.0,81651.0,0.12240777]
[1743413235266,0.01917927,81652.0,81651.0,0.39413962]
[1743413235465,0.01917927,81652.0,81651.0,0.51442445]
[1743413236219,0.01917927,81652.0,81651.0,0.58962445]
[1743413236414,0.00047007,81667.0,81666.0,0.257143]
[1743413236709,0.00047007,81667.0,81666.0,0.6181229]
[1743413237329,0.00047007,81667.0,81666.0,0.5213429]
[1743413237534,7e-08,81667.0,81666.0,0.6672229]
[1743413237736,0.3,81695.0,81691.0,0.0771]
[1743413237960,0.012241,81692.0,81691.0,0.0771]
[1743413238365,0.257077,81687.0,81686.0,0.14588]
[1743413238942,0.257077,81687.0,81686.0,0.15086593]
[1743413239175,0.24483,81690.0,81687.0,0.244835]
[1743413239375,0.24483,81690.0,81686.0,0.15092356]
[1743413239612,0.24483,81690.0,81686.0,0.14593763]
[1743413239864,0.24483,81690.0,81687.0,0.00498593]
[1743413240108,0.244831,81689.0,81687.0,0.00498593]
[1743413240576,0.244817,81694.0,81687.0,0.00498593]
[1743413240785,0.3,81693.0,81690.0,0.244825]
[1743413240999,0.3,81693.0,81691.0,0.244824]
[1743413241172,0.54482,81693.0,81689.0,0.012241]
[1743413241312,0.54482,81693.0,81692.0,0.00498593]
[1743413241518,0.244826,81691.0,81689.0,0.01454085]
[1743413241719,0.012241,81690.0,81689.0,0.01454085]
[1743413241924,0.244826,81691.0,81689.0,0.01454085]
[1743413241925,0.257067,81691.0,81689.0,0.01454085]
[1743413242221,0.244831,81689.0,81686.0,0.14593763]
[1743413242403,0.012241,81687.0,81686.0,0.16047848]
[1743413243192,0.257075,81690.0,81686.0,0.16047848]
[1743413243508,0.244834,81688.0,81686.0,0.16047848]
[1743413243709,0.257072,81689.0,81686.0,0.16247848]
[1743413243914,0.244829,81690.0,81686.0,0.16047848]
[1743413244125,0.244829,81690.0,81686.0,0.16247848]
[1743413244288,0.244829,81690.0,81686.0,0.16347848]
[1743413244472,0.244829,81690.0,81686.0,0.16147848]
[1743413244672,0.244829,81690.0,81686.0,0.40631748]
[1743413244883,0.244825,81694.0,81686.0,0.17571948]
[1743413245087,0.25700257,81696.0,81686.0,0.17571948]
[1743413245088,0.01219257,81696.0,81691.0,0.244823]
[1743413245289,0.3,81694.0,81693.0,0.01454085]
[1743413245606,0.31224,81694.0,81692.0,0.12028483]
[1743413245792,0.244836,81687.0,81686.0,0.14893763]
[1743413246151,0.244828,81690.0,81686.0,0.16247848]
[1743413246434,0.244828,81690.0,81686.0,0.16047848]
[1743413246435,0.244832,81689.0,81686.0,0.16047848]
[1743413246576,0.244832,81689.0,81686.0,0.16147848]
[1743413246783,0.244832,81689.0,81686.0,0.40631748]
[1743413246981,0.244832,81689.0,81686.0,0.16347848]
[1743413247385,0.244834,81688.0,81686.0,0.16047848]
[1743413247603,0.244834,81688.0,81686.0,0.16247848]
[1743413247849,0.244832,81689.0,81686.0,0.40731748]
[1743413248148,0.244836,81687.0,81686.0,0.16247848]
[1743413248318,0.244836,81687.0,81686.0,0.16047848]
[1743413248526,0.244836,81688.0,81686.0,0.16047848]
[1743413248937,0.257077,81687.0,81686.0,0.01559848]
[1743413249139,0.257077,81687.0,81686.0,0.01459848]
[1743413249347,0.257077,81687.0,81686.0,5.763e-05]
[1743413249673,0.257077,81687.0,81686.0,0.00405763]
[1743413250250,0.257077,81687.0,81686.0,0.00205763]
[1743413250461,0.257077,81687.0,81686.0,0.00405763]
[1743413252125,0.557077,81687.0,81686.0,0.00405763]
[1743413253233,0.557077,81687.0,81686.0,5.763e-05]
[1743413253436,0.558077,81687.0,81686.0,5.763e-05]
[1743413253665,0.97247671,81687.0,81686.0,5.763e-05]
[1743413256050,1.09276154,81687.0,81686.0,5.763e-05]
[1743413257555,0.97247671,81687.0,81686.0,5.763e-05]
[1743413257959,0.002,81687.0,81686.0,0.25713763]
[1743413258278,0.002,81687.0,81686.0,0.00497228]
[1743413258566,0.259077,81687.0,81686.0,0.00497228]
[1743413258741,0.259077,81687.0,81686.0,5.763e-05]
[1743413258940,0.558077,81687.0,81686.0,0.00497228]
[1743413259482,0.3,81687.0,81686.0,0.00497228]
[1743413259688,0.1721447,81696.0,81689.0,0.012241]
[1743413260145,0.01224,81693.0,81688.0,0.01454085]
[1743413260260,0.012241,81689.0,81688.0,0.13482568]
[1743413260662,0.257077,81687.0,81686.0,5.763e-05]
[1743413260868,0.257077,81687.0,81686.0,0.13488331]
[1743413261076,0.244836,81687.0,81686.0,0.13979796]
[1743413261289,0.01917157,81689.0,81688.0,0.27161585]
[1743413261500,0.01917157,81689.0,81688.0,0.39190068]
[1743413261748,0.27624357,81689.0,81688.0,0.13974033]
[1743413262478,0.27624357,81689.0,81688.0,0.00591465]
[1743413262768,0.27624357,81689.0,81688.0,0.002]
[1743413263324,0.01917157,81689.0,81688.0,0.002]
[1743413263567,0.01917157,81689.0,81688.0,0.25174865]
[1743413263809,0.26400257,81689.0,81688.0,0.00691465]
[1743413264057,0.01917157,81689.0,81688.0,0.01915565]
[1743413264306,0.01917157,81689.0,81688.0,0.38657433]
[1743413264552,0.01917157,81689.0,81688.0,0.39881533]
[1743413264767,0.26400257,81689.0,81688.0,0.14174033]
[1743413264988,0.27624357,81689.0,81688.0,0.00691465]
[1743413265678,0.27624357,81689.0,81688.0,0.002]
[1743413266055,0.57624357,81689.0,81688.0,0.002]
[1743413266995,0.01917157,81689.0,81688.0,0.002]
[1743413267398,0.012241,81689.0,81688.0,0.00594434]
[1743413267900,0.012241,81689.0,81688.0,0.001]
[1743413269265,0.012241,81687.0,81686.0,5.763e-05]
[1743413269463,0.012241,81687.0,81686.0,0.07777483]
[1743413269823,0.012241,81687.0,81686.0,0.08271917]
[1743413271012,0.012241,81687.0,81686.0,0.07777483]
[1743413271243,0.012241,81687.0,81686.0,0.07877483]
[1743413272489,0.011941,81687.0,81686.0,0.07977483]
[1743413272671,0.010141,81687.0,81686.0,0.07977483]
[1743413274685,0.27624708,81689.0,81686.0,0.07977483]
[1743413275065,0.26400608,81689.0,81686.0,0.07977483]
[1743413275250,0.257075,81688.0,81686.0,0.15617483]
[1743413275455,0.257077,81688.0,81686.0,0.15517483]
[1743413276020,0.01917208,81689.0,81688.0,0.244834]
[1743413276224,0.01917208,81689.0,81688.0,0.257075]
[1743413276424,0.01917208,81689.0,81688.0,0.0777172]
[1743413276628,0.03141308,81689.0,81688.0,0.0777172]
[1743413277009,0.012241,81689.0,81688.0,0.0777172]
[1743413277509,0.012241,81689.0,81688.0,0.0797172]
[1743413277987,0.257072,81689.0,81688.0,0.0797172]
[1743413279581,0.557072,81689.0,81688.0,0.0797172]
[1743413280656,0.603972,81689.0,81688.0,0.0797172]
[1743413280857,0.603972,81689.0,81686.0,8.3e-07]
[1743413280858,0.257077,81687.0,81686.0,8.3e-07]
[1743413281063,0.012246,81658.0,81657.0,0.0464]
[1743413281484,0.244912,81662.0,81657.0,0.2676349]
[1743413281674,0.01917518,81658.0,81657.0,0.48682207]
[1743413283684,0.27634418,81658.0,81657.0,0.00447007]
[1743413283975,0.01917518,81658.0,81657.0,0.00847007]
[1743413284208,0.27634418,81658.0,81657.0,0.00847007]
[1743413284824,0.27634418,81658.0,81657.0,0.00447007]
[1743413285229,0.27634418,81658.0,81657.0,0.00247007]
[1743413285573,0.28567702,81658.0,81657.0,0.00447007]
[1743413286872,0.28567702,81658.0,81657.0,0.00047007]
[1743413287486,0.26650184,81658.0,81657.0,0.00047007]
[1743413288099,0.257169,81658.0,81657.0,0.00047007]
[1743413288662,0.26644662,81658.0,81657.0,0.00047007]
[1743413291824,0.28562497,81658.0,81657.0,0.00047007]
[1743413293892,0.58562497,81658.0,81657.0,0.00047007]
[1743413295476,0.58762497,81658.0,81657.0,0.00047007]
[1743413295600,0.58962497,81658.0,81657.0,0.00047007]
[1743413295812,0.557188,81652.0,81651.0,7e-08]
[1743413296012,0.557188,81652.0,81636.0,0.0143163]
[1743413296013,0.257235,81637.0,81636.0,0.0143163]
[1743413296212,0.257235,81637.0,81636.0,2.3e-07]
[1743413296213,0.97063471,81637.0,81636.0,2.3e-07]
[1743413296495,1.04873471,81637.0,81636.0,2.3e-07]
[1743413296827,1.07732514,81637.0,81636.0,2.3e-07]
[1743413297243,1.1784245,81637.0,81636.0,2.3e-07]
[1743413297674,1.1794245,81637.0,81636.0,2.3e-07]
[1743413298316,1.1013245,81637.0,81636.0,2.3e-07]
[1743413298722,0.257282,81622.0,81621.0,0.004]
[1743413299749,0.245031,81622.0,81621.0,0.004]
[1743413299950,0.25775153,81622.0,81621.0,0.004]
[1743413300335,0.24550053,81622.0,81621.0,0.004]
[1743413300566,0.25752548,81622.0,81621.0,0.004]
[1743413301576,0.26977648,81622.0,81621.0,0.004]
[1743413304352,0.26977648,81622.0,81621.0,0.27582585]
[1743413304353,0.00046953,81622.0,81621.0,0.27582585]
[1743413304748,0.00046953,81622.0,81621.0,0.47491068]
[1743413305008,0.00046953,81622.0,81621.0,0.52131068]
[1743413306405,0.00046953,81622.0,81621.0,0.52231068]
[1743413306814,0.00146953,81622.0,81621.0,0.52231068]
[1743413308889,0.00146953,81622.0,81621.0,0.26502568]
[1743413309519,0.24650053,81622.0,81621.0,0.26502568]
[1743413309952,0.25875153,81622.0,81621.0,0.005]
[1743413310578,0.27793789,81622.0,81621.0,0.005]
[1743413311324,0.27693789,81622.0,81621.0,0.005]
[1743413311538,0.9923376,81622.0,81621.0,1e-06]
[1743413312161,0.257324,81609.0,81608.0,4e-05]
[1743413312388,0.67072371,81609.0,81608.0,4e-05]
[1743413312973,0.98991117,81609.0,81608.0,4e-05]
[1743413314328,0.99929933,81609.0,81608.0,4e-05]
[1743413317446,0.98011187,81609.0,81608.0,4e-05]
[1743413318608,0.95576124,81609.0,81608.0,4e-05]
[1743413321735,0.97495032,81609.0,81608.0,4e-05]
[1743413325541,0.97495032,81609.0,81608.0,0.21126568]
[1743413325542,0.74197695,81609.0,81608.0,0.21126568]
[1743413325739,0.74197695,81609.0,81608.0,0.45633968]
[1743413325941,0.74197695,81609.0,81608.0,0.21126568]
[1743413326440,0.73258879,81609.0,81608.0,0.21126568]
[1743413326866,0.01918908,81609.0,81608.0,0.51489268]
[1743413327081,0.41339971,81619.0,81618.0,0.27183585]
[1743413327283,0.71339971,81619.0,81618.0,0.13482568]
[1743413327484,0.41339971,81619.0,81618.0,0.13482568]
[1743413327691,0.71339971,81619.0,81618.0,0.13482568]
[1743413328972,0.557301,81616.0,81615.0,0.0809]
[1743413329122,0.24506,81613.0,81610.0,0.01454085]
[1743413329321,0.245062,81612.0,81611.0,0.12028483]